[Event "26th Triest Festival 2024"]
[Site "Triest"]
[Date "2024.09.03"]
[Round "5.12"]
[White "Candian, Lorenzo"]
[Black "Citak, Selim"]
[Result "1-0"]
[Annotator "TA"]
[ECO "C00"]
[WhiteElo "2164"]
[BlackElo "2416"]
[PlyCount "87"]
[EventDate "2024.09.02"]
[EventType "swiss"]
[EventCountry "ITA"]
[SourceTitle "playchess.com"]
[Source "ChessBase"]
[SourceQuality "1"]
[TimeControl "5400+30"]

{[%evp 16,87,-8,-30,-6,-21,-17,-43,-50,-47,-14,-35,-40,-27,-18,-60,0,0,43,6,54,59,50,52,53,20,65,0,92,50,51,61,55,0,67,0,161,172,267,259,510,516,1412,1403,1237,845,866,857,811,796,1111,1092,1262,1354,1487,1297,2631,2087,3070,3419,29985,29986,29986,29987,29987,29988,29988,29989,29991,29986,29986,29986,29989,29990]} 1. e4 {[%emt 0:00:41]} c5 {[%emt 0:00:17]} 2. Nf3 {[%emt 0:00:17]} e6 {[%emt 0:00:23]} 3. g3 {[%emt 0:00:43]} Nc6 {[%emt 0:00:12]} 4. Bg2 {[%emt 0:00:09]} Nf6 {[%emt 0:00:12]} 5. d3 {[%emt 0:00:12]} d5 {[%emt 0:00:13]} 6. Qe2 {[%emt 0:00:10]} Be7 {[%emt 0:00:15]} 7. O-O {[%emt 0:00:10]} O-O {[%emt 0:00:12]} 8. e5 {[%emt 0:00:03]} Nd7 {[%emt 0:00:11]} 9. c4 {[%emt 0:00:05]} a6 {[%emt 0:00:19]} 10. h4 {[%emt 0:35:36]} b5 {[%emt 0:02:09]} 11. Na3 {[%emt 0:14:37]} bxc4 {[%emt 0:09:00] Black is slightly better.} 12. dxc4 {[%emt 0:00:43]} d4 {[%emt 0:02:23]} 13. Ng5 {[%emt 0:08:27]} Bb7 {[%emt 0:00:42]} (13... Ndxe5 14. Bf4 $11) 14. f4 {[%emt 0:05:18]} Rb8 {[%emt 0:11:42]} 15. Be4 {[%emt 0:12:10]} Bxg5 {[%emt 0:04:16]} (15... h6 $15 16. Bh7+ Kh8) 16. hxg5 $11 {[%emt 0:01:13]} g6 {[%emt 0:00:44]} 17. Rf2 {[%emt 0:04:47]} (17. Nb1 {with more complications.} h5 18. gxh6 Kh7 19. b3) 17... Nb4 {[%emt 0:03:46]} (17... Qb6 $11 {is more appropriate.}) 18. Bxb7 $14 {[%emt 0:01:58]} Rxb7 {[%emt 0:00:07]} 19. Rh2 {[%emt 0:02:22]} Re8 {[%emt 0:01:49]} 20. Nb1 {[%emt 0:04:20]} Qa8 {[%emt 0:25:38]} 21. Nd2 {[%emt 0:01:11]} ({White should try} 21. Qf1 $1 $14) 21... Rbb8 {[%emt 0:02:30]} (21... d3 $6 22. Qf3 $16) (21... Nc2 $1 $11 22. Rb1 Rb6) 22. Ne4 {[%emt 0:02:00]} d3 {[%emt 0:03:59]} 23. Qf3 {[%emt 0:00:06] Black must now prevent Bd2.} Nc2 {[%emt 0:02:07] [#]} 24. Qh1 $1 {[%emt 0:00:44]} h5 {[%emt 0:00:44]} (24... Kf8 $11 25. Rxh7 Nxa1) (24... Nxa1 25. Rxh7) 25. Rb1 {[%emt 0:03:22]} (25. g4 $1 $14 Kg7 (25... Nxa1 $2 26. gxh5 Nf8 27. hxg6 $18) 26. gxh5 gxh5 27. Rb1) 25... Nd4 $2 {[%emt 0:00:40] Black is on the road to losing.} (25... Na3 $11 {and Black stays safe.} 26. g4 Kg7 (26... Nxb1 27. gxh5 Kf8 28. hxg6 $11) 27. gxh5 gxh5 (27... Nxb1 $2 28. hxg6 Kf8 29. gxf7 $18)) 26. g4 {[%emt 0:00:23]} Ne2+ {[%emt 0:01:36]} (26... Kg7 {keeps fighting.}) 27. Kf2 $18 {[%emt 0:00:01]} Nxc1 $2 {[%emt 0:01:37]} (27... Kg7 28. gxh5 gxh5) 28. gxh5 {[%emt 0:00:06]} gxh5 {[%emt 0:03:03]} (28... Kf8 $142 29. hxg6 (29. Rxc1 Rxb2+ 30. Ke3 Rxh2 $18) 29... d2) 29. Rxh5 {[%emt 0:00:04]} ({Weaker is} 29. Rxc1 Rxb2+ 30. Ke3 Rxh2 31. Qxh2 Kg7 $14) 29... Kf8 {[%emt 0:00:04]} 30. Rh7 {[%emt 0:00:28] Threatening mate with g6.} Ke7 {[%emt 0:04:10] [#]} 31. Rxf7+ $3 {[%emt 0:00:38][%mdl 512]} Kd8 {[%emt 0:00:04]} 32. Rxc1 {[%emt 0:00:16]} Rxb2+ {[%emt 0:01:01]} 33. Ke3 {[%emt 0:00:56]} Nb6 {[%emt 0:05:46]} 34. g6 {[%emt 0:01:19]} Qc6 {[%emt 0:02:40]} 35. Rc3 {[%emt 0:00:38]} Re2+ {[%emt 0:03:58]} 36. Kxd3 {[%emt 0:00:01]} Rxa2 {[%emt 0:00:04][%cal Be2a2,Ba2a3,Ba3c3,Bc3c4,Bc4d4][%mdl 32]} 37. Ke3 {[%emt 0:00:29]} Ra3 {[%emt 0:07:01]} 38. Qh4+ {[%emt 0:00:53] White mates.} Kc8 {[%emt 0:03:56]} 39. Nd6+ {[%emt 0:00:05]} Qxd6 {[%emt 0:00:00]} 40. exd6 {[%emt 0:00:04]} Rxc3+ {[%emt 0:00:00]} 41. Kd2 {[%emt 0:00:03]} Rxc4 {[%emt 0:00:00]} 42. g7 {[%emt 0:00:28]} Rd4+ {[%emt 0:00:00]} 43. Ke1 {[%emt 0:00:05]} Nd7 {[%emt 0:00:00]} 44. Qh8 {[%emt 0:00:24] Weighted Error Value: White=0.16 (very precise) /Black=0.69.  Loses game:     	---       	Black=1      Mistake:       	White=3     	Black=7      Inaccurate:     	White=5     	Black=2      OK:         	White=4     	Black=4      Best:        	White=2     	Black=3} 1-0